bitfinex-derivatives/quotes_ETHF0:USTF0_20250103
["timestamp","ask_amount","ask_price","bid_price","bid_amount"]
[1735909637843,0.28835,3470.9,3470.8,0.28836]
[1735909638049,0.28837,3470.8,3470.7,0.28836]
[1735909638547,0.28838,3470.6,3470.5,0.28837]
[1735909638850,0.28837,3470.7,3470.6,0.28837]
[1735909639244,3.2078,3471.7,3470.6,5.4745827]
[1735909639446,3.2078,3471.7,3470.7,0.72092]
[1735909639652,0.28833,3471.2,3471.1,0.28833]
[1735909639850,3.2078,3471.7,3470.9,2.2667827]
[1735909640051,0.28832,3471.3,3471.2,0.28832]
[1735909640248,3.2078,3471.7,3470.9,2.2667827]
[1735909640550,3.49609,3471.7,3471.6,0.28829]
[1735909640754,3.2078,3471.7,3471.2,2.2667827]
[1735909640948,0.28833,3471.2,3471.0,0.28834]
[1735909641147,0.28833,3471.2,3471.1,0.28832]
[1735909643049,0.28835,3471.0,3470.9,0.28834]
[1735909643250,3.2078,3471.3,3470.7,0.72092]
[1735909643556,0.28833,3471.2,3471.1,0.28833]
[1735909643755,3.2078,3471.7,3470.9,2.9876527]
[1735909643951,0.28831,3471.5,3471.4,0.2883]
[1735909644950,3.2078,3471.7,3471.0,3.2078]
[1735909645145,3.2078,3471.7,3471.1,0.72083]
[1735909645345,3.49609,3471.7,3471.6,0.28829]
[1735909645547,0.28829,3471.7,3471.6,0.28829]
[1735909645742,3.2078,3472.1,3471.3,1.88279]
[1735909645947,3.49605,3472.1,3472.0,0.28826]
[1735909646355,3.2078,3472.1,3472.0,0.28826]
[1735909646543,0.28824,3472.3,3471.8,5.4745827]
[1735909646743,0.2882,3472.8,3472.7,0.28819]
[1735909646955,3.67764491,3472.9,3472.8,0.28819]
[1735909647360,3.38945491,3472.9,3472.8,0.28819]
[1735909647749,41.08818,3473.1,3472.5,0.72053]
[1735909647949,41.08818,3473.1,3473.0,0.28818]
[1735909648247,0.28818,3473.0,3472.9,0.28818]
[1735909648647,3.2078,3473.2,3472.7,2.2667827]
[1735909648851,40.8,3473.4,3472.7,2.2667827]
[1735909649248,0.28818,3473.0,3472.9,0.28818]
[1735909649449,0.28818,3473.0,3472.6,3.2078]
[1735909649450,3.2078,3473.1,3472.6,3.2078]
[1735909649649,0.28819,3472.9,3472.8,0.28819]
[1735909649851,3.2078,3473.1,3472.4,2.2667827]
[1735909650052,3.2078,3473.1,3473.0,0.28818]
[1735909650250,3.2078,3473.6,3472.7,2.9872827]
[1735909650455,0.28815,3473.4,3473.3,0.28814]
[1735909650758,0.28816,3473.3,3473.2,0.28815]
[1735909651758,40.8,3473.5,3472.7,2.2667827]
[1735909652162,0.28816,3473.3,3473.2,0.28815]
[1735909652462,40.8,3473.5,3472.7,2.2667827]
[1735909652760,3.49593,3473.6,3473.5,0.28813]
[1735909653560,3.2078,3473.6,3473.0,2.2667827]
[1735909653958,3.2078,3473.6,3473.5,0.28813]
[1735909655258,3.2078,3474.4,3473.5,1.162]
[1735909655452,3.2078,3474.4,3474.1,0.28808]
[1735909655453,0.28808,3474.2,3474.1,0.28808]
[1735909655959,3.2078,3474.4,3474.3,0.28807]
[1735909656260,3.2078,3474.8,3474.2,2.2667827]
[1735909656662,0.28806,3474.5,3474.4,0.28806]
[1735909656858,0.28806,3474.4,3474.3,0.28807]
[1735909657064,0.28807,3474.3,3474.2,0.28808]
[1735909657259,0.28809,3474.1,3474.0,0.28809]
[1735909657564,0.2881,3474.0,3473.9,0.2881]
[1735909657764,0.28811,3473.8,3473.6,2.2667827]
[1735909657954,0.28808,3474.2,3473.6,2.2667827]
[1735909658158,40.8,3474.1,3473.7,0.28812]
[1735909658358,40.8,3474.1,3473.6,2.2667827]
[1735909658359,40.8,3474.1,3474.0,0.28809]
[1735909658559,41.08808,3474.1,3474.0,0.28809]
[1735909659268,40.8,3474.1,3474.0,0.28809]
[1735909659964,41.08808,3474.1,3474.0,0.28809]
[1735909660469,40.8,3474.1,3474.0,0.28809]
[1735909660859,3.2078,3474.4,3473.8,5.91562352]
[1735909661160,3.2078,3474.4,3474.3,0.28807]
[1735909661367,0.28804,3474.7,3474.6,0.28804]
[1735909662166,0.28807,3474.4,3474.3,0.28806]
[1735909662566,0.28809,3474.1,3473.8,5.91562352]
[1735909662769,0.28808,3474.2,3474.1,0.28808]
[1735909663470,0.72009,3474.7,3474.2,0.28807]
[1735909663471,0.28807,3474.3,3474.2,0.28807]
[1735909663673,3.2078,3474.4,3473.8,6.63588352]
[1735909663864,3.49587,3474.4,3474.3,0.28807]
[1735909664459,0.28807,3474.4,3474.3,0.28807]
[1735909665372,0.28806,3474.5,3474.4,0.28805]
[1735909666576,0.28808,3474.2,3474.1,0.28807]
[1735909666872,0.28808,3474.3,3474.2,0.28806]
[1735909667072,0.2881,3473.9,3473.8,3.4959]
[1735909667669,0.2881,3474.0,3473.9,0.28809]
[1735909668568,3.2078,3474.4,3473.8,3.2078]
[1735909668974,0.2881,3474.0,3473.9,0.2881]
[1735909670375,0.2881,3473.9,3473.8,3.4959]
[1735909670970,0.2881,3473.9,3473.4,3.88182352]
[1735909670971,0.28812,3473.8,3473.7,0.28811]
[1735909671975,0.28813,3473.5,3473.4,0.28813]
[1735909672966,3.2078,3474.0,3473.2,3.2078]
[1735909673173,0.28811,3473.9,3473.8,0.2881]
[1735909674279,0.28812,3473.8,3473.7,0.2881]
[1735909674776,0.28811,3473.9,3473.8,0.2881]
[1735909677981,3.2078,3474.0,3473.9,0.2881]
[1735909678885,0.28808,3474.2,3474.1,0.28808]
[1735909679079,3.49586,3474.4,3474.3,0.28807]
[1735909681086,3.2078,3474.4,3474.3,0.28807]
[1735909681288,0.28804,3474.7,3474.6,0.28803]
[1735909682991,3.49583,3474.8,3474.7,0.28803]
[1735909683179,3.2078,3474.8,3474.7,0.28803]
[1735909683376,3.2078,3475.2,3475.1,0.28799]
[1735909684184,3.2078,3475.2,3475.1,2.55236011]
[1735909685079,3.2078,3475.2,3475.1,0.28799]
[1735909685287,3.2078,3475.2,3475.1,0.73815289]
[1735909686386,0.28797,3475.5,3475.4,0.28797]
[1735909686794,0.28797,3475.5,3475.4,0.73813289]
[1735909687384,0.28797,3475.5,3475.4,0.45016289]
[1735909688387,0.28797,3475.5,3475.4,0.73814289]
[1735909689096,0.28797,3475.5,3475.4,0.45016289]
[1735909689592,0.28797,3475.5,3475.4,0.73814289]
[1735909692192,0.28796,3475.6,3475.5,0.28796]
[1735909692393,0.28796,3475.6,3475.5,0.73812289]
[1735909694893,44.29576,3475.7,3475.6,0.28796]
[1735909696591,44.0078,3475.7,3475.2,0.71997]
[1735909696791,44.0078,3475.7,3475.5,0.28796]
[1735909696792,0.28797,3475.6,3475.5,0.28796]
[1735909696990,0.28797,3475.6,3475.5,0.73809258]
[1735909697196,0.28797,3475.6,3475.5,0.28796]
[1735909697389,3.2078,3475.7,3475.1,2.26437011]
[1735909697694,0.28798,3475.4,3475.3,0.28797]
[1735909698198,0.28797,3475.5,3475.4,0.28796]
[1735909698594,0.28797,3475.5,3475.4,0.73813088]
[1735909699588,0.28797,3475.5,3475.4,0.28798]
[1735909699786,0.28799,3475.4,3475.3,0.28798]
[1735909699994,0.28799,3475.4,3475.3,0.45013873]
[1735909700800,0.28799,3475.4,3474.5,8.92883722]
[1735909700801,2.26437011,3475.4,3474.7,4.8012191]
[1735909700996,0.28803,3474.8,3474.7,4.5131891]
[1735909701192,3.49583,3474.8,3474.7,4.96342021]
[1735909701396,3.49583,3474.8,3474.7,4.5131891]
[1735909701591,0.28805,3474.5,3474.4,0.28805]
[1735909701793,0.28805,3474.5,3474.4,0.73830158]
[1735909701997,0.28805,3474.7,3474.6,0.28803]
[1735909702297,0.28805,3474.7,3474.6,0.45025158]
[1735909702889,0.28805,3474.7,3474.6,0.73829158]
[1735909703099,3.2078,3474.8,3474.7,0.28803]
[1735909703494,3.2078,3474.8,3474.7,0.73828158]
[1735909704002,2.24586635,3475.3,3475.2,0.28799]
[1735909704203,2.24586635,3475.3,3475.2,2.55236011]
[1735909704498,2.24586635,3475.3,3475.2,3.00261169]
[1735909705001,3.2078,3475.7,3475.2,3.43460169]
[1735909705197,3.2078,3475.7,3475.6,0.28796]
[1735909705198,3.49575,3475.7,3475.6,0.28796]
[1735909705402,3.49575,3475.7,3475.6,0.73821158]
[1735909705991,3.49575,3475.7,3475.6,0.28796]
[1735909706503,3.49575,3475.7,3475.6,0.4501258]
[1735909706691,3.2078,3475.7,3475.5,0.28797]
[1735909706897,0.28798,3475.5,3475.4,0.28797]
[1735909707201,0.28798,3475.5,3475.4,0.73811444]
[1735909711306,3.2078,3475.7,3475.4,0.45014444]
[1735909711510,0.28796,3475.6,3475.5,0.28796]
[1735909711701,0.28796,3475.6,3475.5,0.73810444]
[1735909712305,5.45366635,3476.1,3476.0,0.28793]
[1735909712607,5.45366635,3476.1,3476.0,2.55230011]
[1735909712802,5.74158635,3476.1,3476.0,0.45014444]
[1735909713403,3.49572,3476.1,3476.0,0.45014444]
[1735909713603,44.29572,3476.1,3476.0,0.45014444]
[1735909713808,0.28795,3475.7,3475.6,0.28795]
[1735909714403,0.28795,3475.7,3475.6,0.73805827]
[1735909714605,0.28795,3475.8,3475.7,0.28795]
[1735909714800,0.28795,3475.8,3475.7,0.73805827]
[1735909715513,0.28794,3476.0,3475.9,0.28793]
[1735909715714,0.28793,3476.0,3475.9,0.28793]
[1735909715923,0.28793,3476.0,3475.9,0.73803827]
[1735909716115,3.2078,3476.1,3475.9,0.45010827]
[1735909716416,3.49572,3476.1,3476.0,0.73803827]
[1735909717515,3.2078,3476.1,3476.0,0.73803827]
[1735909718619,3.49572,3476.1,3476.0,0.73803827]
[1735909719018,3.2078,3476.1,3476.0,3.00240838]
[1735909720419,0.28789,3476.5,3476.4,0.28788]
[1735909720818,0.28789,3476.5,3476.4,0.73798827]
[1735909722517,0.28789,3476.5,3476.4,0.45010827]
[1735909723019,0.28791,3476.2,3476.1,0.28791]
[1735909723318,3.49571,3476.2,3476.1,0.73796545]
[1735909723520,3.49571,3476.2,3476.1,0.45005545]
[1735909723820,3.49571,3476.2,3476.1,0.73797545]
[1735909724413,3.2078,3476.2,3476.1,0.73797545]
[1735909724618,5.45366635,3476.6,3476.5,0.28789]
[1735909724819,5.45366635,3476.6,3476.5,0.73794545]
[1735909725116,2.24586635,3476.6,3476.5,0.73794545]
[1735909725716,2.24586635,3476.9,3476.5,3.65785545]
[1735909725914,2.24586635,3476.9,3476.8,0.28786]
[1735909726314,2.24586635,3476.9,3476.8,0.73791545]
[1735909727123,2.25792447,3477.4,3477.0,0.7196]
[1735909727326,2.25792447,3477.4,3477.3,5.75999011]
[1735909727625,2.25792447,3477.4,3477.3,6.21004556]
[1735909729223,44.0078,3478.4,3477.9,0.28776]
[1735909729524,44.0078,3478.4,3477.7,2.26437011]
[1735909729830,44.0078,3478.4,3478.0,2.26437011]
[1735909730017,44.0078,3478.4,3478.2,0.28774]
[1735909730018,0.28774,3478.3,3478.2,0.28774]
[1735909730322,44.29553,3478.4,3478.3,0.28774]
[1735909730715,44.0078,3478.4,3478.3,2.55211011]
[1735909730918,3.2078,3478.4,3478.3,2.55211011]
[1735909731725,3.2078,3478.4,3478.3,2.26437011]
[1735909731920,3.49553,3478.4,3478.3,2.26437011]
[1735909732325,3.2078,3478.4,3478.3,2.55211011]
[1735909733724,3.4955,3478.8,3478.7,0.2877]
[1735909733921,3.2078,3478.8,3478.7,2.55207011]
[1735909734423,3.49549,3478.8,3478.7,2.26437011]
[1735909735616,3.2078,3478.8,3478.7,2.26437011]
[1735909735815,3.2078,3478.8,3478.7,2.55207011]
[1735909736023,41.71194113,3478.9,3478.7,2.55207011]
[1735909736319,41.71194113,3478.9,3478.8,0.28769]
[1735909736519,0.91194113,3478.9,3478.8,0.28769]
[1735909740125,1.19963113,3478.9,3478.7,2.26437011]
[1735909740323,0.28769,3478.8,3478.7,2.26437011]
[1735909740523,0.28772,3478.5,3478.4,2.26437011]
[1735909740924,0.28772,3478.5,3477.7,3.92726]
[1735909740925,0.28775,3478.1,3478.0,2.55213011]
[1735909741122,3.2078,3478.4,3478.0,2.26437011]
[1735909741427,0.91194113,3478.9,3478.3,2.26437011]
[1735909741627,0.91194113,3478.9,3478.4,2.26437011]
[1735909741824,0.28774,3478.2,3478.1,2.26437011]
[1735909742228,0.28774,3478.2,3478.1,2.55212011]
[1735909742429,0.28774,3478.2,3478.1,2.26437011]
[1735909742635,0.28774,3478.2,3478.1,2.55212011]
[1735909743829,3.2078,3478.5,3478.1,2.26437011]
[1735909744034,3.2078,3478.5,3477.6,5.08728]
[1735909744035,3.2078,3478.5,3477.8,2.26437011]
[1735909744236,3.2078,3478.1,3477.8,2.26437011]
[1735909744437,0.28777,3477.9,3477.8,2.26437011]
[1735909744933,3.2078,3478.1,3477.5,2.26437011]
[1735909745329,0.28779,3477.7,3477.6,0.28778]
[1735909746134,3.2078,3478.1,3477.5,2.26437011]
[1735909746135,0.71941,3478.0,3477.5,2.26437011]
[1735909746340,0.28781,3477.5,3477.4,0.2878]
[1735909746639,3.2078,3477.7,3477.2,0.28782]
[1735909746640,0.28783,3477.3,3477.2,0.28782]
[1735909746833,0.28784,3477.0,3476.9,0.28785]
[1735909747035,0.28784,3477.1,3477.0,0.28784]
[1735909747635,3.2078,3477.3,3476.9,2.26437011]
[1735909747636,3.49562,3477.3,3477.2,0.28783]
[1735909747832,3.2078,3477.3,3477.2,0.28783]
[1735909748036,3.2078,3477.3,3476.9,2.26437011]
[1735909748339,3.2078,3477.3,3477.0,0.44857099]
[1735909748541,0.2878,3477.6,3477.2,2.55220011]
[1735909748732,3.2078,3477.7,3477.5,2.26437011]
[1735909748933,3.49559,3477.7,3477.6,0.28779]
[1735909749140,3.2078,3477.7,3477.6,0.28779]
[1735909749436,3.49559,3477.7,3477.6,0.28779]
[1735909749643,3.2078,3477.7,3477.6,0.28779]
[1735909750733,3.2078,3477.7,3477.6,0.73652325]
[1735909751335,3.49559,3477.7,3477.6,0.73652325]
[1735909751737,3.2078,3477.7,3477.6,0.73652325]
[1735909753741,3.2078,3478.1,3477.6,0.44873325]
[1735909753941,0.28778,3477.8,3477.7,0.28778]
[1735909754244,3.2078,3478.1,3477.7,0.44873325]
[1735909754545,0.28778,3477.9,3477.8,0.28777]
[1735909754746,0.28778,3477.9,3477.8,0.73650325]
[1735909754947,0.28778,3477.9,3477.8,0.44873325]
[1735909755342,0.28778,3477.9,3477.8,0.73651325]
[1735909755840,3.2078,3478.1,3477.8,0.44873325]
[1735909756039,3.49556,3478.1,3478.0,0.28776]
[1735909756241,3.49556,3478.1,3478.0,0.73649325]
[1735909756444,3.49556,3478.1,3478.0,0.44873325]
[1735909756740,3.49556,3478.1,3478.0,0.73649325]
[1735909756937,3.2078,3478.1,3478.0,0.73649325]
[1735909757136,3.2078,3478.1,3478.0,0.44873325]
[1735909757137,3.49555,3478.1,3478.0,0.44873325]
[1735909757646,3.2078,3478.1,3478.0,0.73649325]
[1735909757847,3.49555,3478.1,3478.0,0.73649325]
[1735909758241,3.49555,3478.1,3478.0,0.28776]
[1735909759246,3.2078,3478.1,3477.8,2.26437011]
[1735909759446,0.28778,3477.9,3477.5,2.98388011]
[1735909759647,0.28778,3477.9,3477.8,0.28778]
[1735909760450,3.2078,3478.1,3477.5,2.26437011]
[1735909760645,0.28777,3478.0,3477.9,0.28776]
[1735909762145,0.28779,3477.8,3477.7,0.28778]
[1735909762342,0.28777,3477.9,3477.8,0.28776]
[1735909762950,0.28779,3477.7,3477.6,0.28778]
[1735909763856,0.28778,3477.8,3477.7,0.28777]
[1735909764745,3.2078,3478.1,3477.5,2.26437011]
[1735909764951,0.28779,3477.6,3477.5,2.55216011]
[1735909765956,0.28778,3477.9,3477.8,0.28777]
[1735909766155,3.2078,3478.1,3477.5,2.26437011]
[1735909766357,0.28779,3477.8,3477.7,0.28777]
[1735909769656,0.28777,3478.0,3477.9,0.28776]
[1735909769960,3.2078,3478.1,3478.0,0.28776]
[1735909771158,3.49555,3478.1,3478.0,0.28776]
[1735909771657,0.28775,3478.1,3478.0,0.28776]
[1735909772650,3.49553,3478.5,3478.4,0.28773]
[1735909772952,5.56555278,3479.1,3478.8,0.28769]
[1735909774459,0.91194113,3478.9,3478.8,0.28769]
[1735909775555,0.91194113,3478.9,3478.8,3.49549]
[1735909777959,0.91194113,3478.9,3478.8,0.28769]
[1735909778456,40.8,3479.5,3478.8,0.28769]
[1735909778457,40.8,3479.5,3479.4,0.28765]
[1735909778755,3.2078,3479.6,3479.5,0.28764]
[1735909779258,45.31927322,3480.2,3479.5,0.28764]
[1735909779259,3.2078,3480.1,3480.0,0.2876]
[1735909779951,3.49539,3480.1,3480.0,0.2876]
[1735909780157,3.2078,3480.1,3479.2,2.98352011]
[1735909780357,3.2078,3479.7,3479.6,0.28762]
[1735909780659,3.49542,3479.7,3479.6,0.28762]
[1735909780857,3.2078,3479.7,3479.6,0.28762]
[1735909781156,0.2876,3480.0,3479.9,0.2876]
[1735909781556,3.2078,3480.1,3479.5,2.26437011]
[1735909781757,0.28762,3479.8,3479.7,0.28761]
[1735909782259,3.2078,3480.1,3480.0,0.2876]
[1735909782461,0.28753,3480.9,3480.7,0.28753]
[1735909782665,4.51927322,3480.8,3480.7,0.28753]
[1735909782961,45.31927322,3480.8,3480.7,0.28753]
[1735909783460,4.51927322,3480.8,3480.7,0.28753]
[1735909783659,3.49532,3481.0,3480.4,2.26437011]
[1735909783856,41.08752,3480.9,3480.8,0.28752]
[1735909784055,43.06437011,3480.9,3479.5,6.77755921]
[1735909784255,3.2078,3480.4,3479.5,6.77755921]
[1735909784554,3.2078,3479.9,3479.8,0.28761]
[1735909784754,3.2078,3479.9,3479.5,4.5131891]
[1735909784955,0.28762,3479.8,3479.3,1.17]
[1735909785151,0.28761,3479.8,3479.7,0.28762]
[1735909785363,3.2078,3479.9,3479.6,0.28762]
[1735909785364,0.28762,3479.7,3479.6,0.28762]
[1735909785866,0.28762,3479.8,3479.7,0.28762]
[1735909786058,0.28762,3479.8,3479.2,2.98353011]
[1735909786059,0.28761,3479.8,3479.6,0.28762]
[1735909786462,3.2078,3479.9,3479.2,2.98353011]
[1735909786655,3.2078,3479.9,3479.6,0.28762]
[1735909786857,0.28762,3479.7,3479.6,0.28762]
[1735909787265,0.28762,3479.8,3479.7,0.28762]
[1735909787557,3.2078,3479.9,3479.2,2.26437011]
[1735909787758,3.49541,3479.9,3479.8,0.28761]
[1735909787956,0.28762,3479.8,3479.7,0.28762]
[1735909788155,0.28762,3479.8,3479.2,2.98353011]
[1735909788156,0.28763,3479.7,3479.6,0.28762]
[1735909788360,40.8,3479.8,3479.2,2.26437011]
[1735909788662,41.08762,3479.8,3479.7,0.28762]
[1735909788863,40.8,3479.8,3479.7,0.28762]
[1735909789164,3.49541,3479.9,3479.8,0.28761]
[1735909789657,0.28761,3479.9,3479.8,0.28761]
[1735909790258,3.49541,3479.9,3479.8,0.28761]
[1735909790462,3.2078,3479.9,3479.5,2.26437011]
[1735909790664,0.28762,3479.8,3479.7,0.28762]
[1735909791162,3.2078,3479.9,3479.5,2.26437011]
[1735909791361,3.2078,3479.9,3479.8,0.28761]
[1735909795168,3.4954,3479.9,3479.8,0.28761]
[1735909795366,3.2078,3479.9,3479.2,2.26437011]
[1735909795567,0.28762,3479.8,3479.7,0.28761]
[1735909796272,3.2078,3479.9,3479.3,0.71914]
[1735909796565,3.2078,3479.9,3479.8,0.28761]
[1735909796760,3.2078,3479.9,3479.5,2.26437011]
[1735909797065,0.28762,3479.8,3479.7,0.28761]
[1735909797462,3.49541,3479.9,3479.8,0.28761]
[1735909797664,3.37275984,3480.9,3480.7,0.28754]
[1735909797863,2.38966022,3481.3,3481.2,0.2875]
[1735909798065,1.78054841,3482.1,3482.0,0.28743]
[1735909798267,3.2078,3483.0,3482.0,5.47217011]
[1735909798268,6.07710025,3482.4,3482.0,5.47217011]
[1735909798565,0.5,3482.4,3482.3,2.55178011]
[1735909799468,3.3736,3482.4,3482.0,3.2078]
[1735909799660,2.8736,3482.1,3481.0,2.26437011]
[1735909799862,5.97217011,3482.4,3481.1,10.60754195]
[1735909799863,2.8736,3481.2,3481.1,10.60754195]
[1735909800163,3.2078,3482.0,3481.1,11.05081752]
[1735909800364,1.0727571,3481.7,3481.6,0.28746]
[1735909800970,1.0727571,3481.7,3481.6,0.73073557]
[1735909802767,0.28742,3482.2,3481.9,0.28744]
[1735909803366,0.28741,3482.3,3482.0,0.28743]
[1735909804274,40.8,3482.6,3481.8,5.47217011]
[1735909804568,0.28741,3482.3,3481.9,0.28744]
[1735909804776,0.28741,3482.3,3481.9,0.44254267]
[1735909804972,0.28741,3482.3,3481.8,5.47217011]
[1735909805166,0.28741,3482.3,3482.1,0.28742]
[1735909805366,0.28739,3482.5,3482.1,0.28742]
[1735909805671,0.28742,3482.2,3482.0,0.28743]
[1735909805969,40.8,3482.6,3481.8,5.47217011]
[1735909806175,0.28743,3482.0,3481.8,3.49524]
[1735909806376,40.8,3482.6,3481.8,3.2078]
[1735909806668,0.28744,3481.9,3481.8,3.2078]
[1735909807174,0.28744,3481.9,3481.8,3.65009829]
[1735909808070,0.28744,3481.9,3481.8,3.2078]
[1735909808576,40.8,3482.6,3481.8,3.2078]
[1735909808968,0.28744,3481.9,3481.8,3.2078]
[1735909809565,40.8,3482.6,3481.8,5.47217011]
[1735909809865,0.28741,3482.3,3482.1,0.28742]
[1735909810365,0.28739,3482.5,3482.3,0.28741]
[1735909810561,40.8,3482.6,3482.1,2.26437011]
[1735909810765,3.7068,3483.6,3482.4,2.26437011]
[1735909810966,0.28736,3483.0,3482.7,5.75954011]
[1735909811169,3.7068,3483.6,3483.0,0.28734]
[1735909811471,0.28734,3483.2,3483.0,0.28735]
[1735909811672,0.28734,3483.1,3482.9,0.28735]
[1735909811975,0.28734,3483.2,3483.0,0.28735]
[1735909812272,40.8,3483.5,3482.9,0.28736]
[1735909812273,0.28734,3483.1,3482.9,0.28736]
[1735909812473,0.71829,3483.4,3482.7,5.47217011]
[1735909812662,0.28736,3482.8,3482.7,3.2078]
[1735909812974,0.28736,3482.8,3482.4,2.55176011]
[1735909812975,0.28738,3482.7,3482.6,0.28738]
[1735909813169,3.2078,3483.3,3482.4,2.26437011]
[1735909813366,3.2078,3483.3,3482.6,0.28737]
[1735909813575,0.28738,3482.7,3482.5,0.28739]
[1735909813763,3.2078,3483.3,3482.4,2.26437011]
[1735909813967,3.2078,3483.3,3482.6,0.28737]
[1735909814169,1.00567,3483.2,3482.5,0.28738]
[1735909814370,0.28738,3482.6,3482.5,0.28738]
[1735909814563,0.28739,3482.6,3482.5,0.28739]
[1735909814762,0.28737,3482.8,3482.4,2.26437011]
[1735909814971,0.28737,3482.8,3482.7,0.28737]
[1735909815170,3.2078,3483.3,3482.5,0.28739]
[1735909815476,0.28737,3482.8,3482.7,0.28737]
[1735909815768,1.00567,3483.2,3482.6,0.28737]
[1735909815974,1.00567,3483.2,3482.4,2.26437011]
[1735909815975,0.28737,3482.7,3482.4,2.26437011]
[1735909816175,0.28738,3482.6,3482.5,0.28738]
[1735909816371,0.28739,3482.5,3482.4,2.26437011]
[1735909816770,0.28739,3482.5,3482.4,2.55177011]
[1735909817270,0.2874,3482.4,3482.3,3.2078]
[1735909817469,0.71845,3482.7,3482.3,3.2078]
[1735909817670,0.2874,3482.4,3482.3,3.2078]
[1735909817872,0.2874,3482.4,3482.3,3.49521]
[1735909818473,0.2874,3482.4,3482.3,3.2078]
[1735909821475,4.64445,3483.3,3482.3,3.2078]
[1735909821476,0.499,3484.2,3482.3,11.70417011]
[1735909821682,0.499,3484.9,3484.1,3.2078]
[1735909821883,0.2872,3484.8,3484.5,0.28722]
[1735909822077,0.499,3484.9,3484.2,2.26437011]
[1735909822285,0.499,3484.9,3484.5,2.26437011]
[1735909822482,0.499,3484.9,3484.2,2.26437011]
[1735909822688,0.499,3484.9,3484.6,0.28721]
[1735909822874,0.2872,3484.8,3484.6,0.28721]
[1735909823187,0.499,3484.9,3484.5,2.26437011]
[1735909823485,0.499,3484.9,3484.8,0.2872]
[1735909823889,0.499,3484.9,3484.8,2.55157011]
[1735909824574,0.499,3484.9,3484.7,3.2078]
[1735909825086,0.499,3484.9,3484.8,2.55157011]
[1735909826282,0.499,3485.0,3484.8,2.26437011]
[1735909826483,0.499,3485.0,3484.9,0.28719]
[1735909827190,0.499,3485.0,3484.9,5.28719]
[1735909827485,0.499,3485.0,3484.9,0.7281043]
[1735909828680,2.26437011,3487.4,3484.9,0.7281043]
[1735909828681,3.2078,3486.5,3484.9,5.4409143]
[1735909828881,3.49486,3486.5,3486.4,2.26437011]
[1735909829387,3.2078,3486.5,3486.4,2.26437011]
[1735909829777,3.2078,3487.0,3486.4,2.26437011]
[1735909829982,3.2078,3487.0,3486.0,1.284]
[1735909830181,3.49482,3487.0,3486.9,2.26437011]
[1735909830389,40.8,3487.2,3486.9,2.26437011]
[1735909830578,0.28701,3487.1,3486.9,2.26437011]
[1735909830985,41.08701,3487.2,3486.9,2.26437011]
[1735909831186,40.8,3487.2,3486.9,2.26437011]
[1735909831392,0.28702,3487.0,3486.9,2.26437011]
[1735909832181,5.89655429,3487.3,3486.0,3.2078]
[1735909832383,3.2078,3486.7,3486.0,3.2078]
[1735909832582,0.28709,3486.2,3486.0,3.2078]
[1735909832785,40.8,3486.1,3486.0,3.2078]
[1735909833780,0.28714,3485.5,3485.4,2.68875429]
[1735909833977,0.28714,3485.6,3485.4,2.68875429]
[1735909834389,40.8,3486.1,3485.4,2.68875429]
[1735909834589,0.28714,3485.5,3485.4,2.68875429]
[1735909834982,0.2871,3486.0,3485.4,2.68875429]
[1735909835283,0.28714,3485.6,3485.4,2.68875429]
[1735909835482,0.28714,3485.5,3485.4,2.68875429]
[1735909835884,0.28715,3485.4,3485.3,3.2078]
[1735909836484,40.8,3486.1,3485.3,3.2078]
[1735909836689,0.28715,3485.4,3485.3,3.2078]
[1735909836882,0.28715,3485.4,3485.3,3.49495]
[1735909837193,0.28715,3485.4,3485.3,3.2078]
[1735909837885,0.28717,3485.1,3485.0,2.68875429]
[1735909838290,3.2078,3485.7,3485.0,2.68875429]
[1735909838484,0.28716,3485.3,3485.1,0.28717]
[1735909838684,3.2078,3485.7,3485.0,2.68875429]
[1735909838985,0.28714,3485.6,3485.5,0.28714]
[1735909839189,40.8,3486.1,3485.3,3.2078]
[1735909839391,0.2871,3486.0,3485.8,0.28711]
[1735909839597,0.28711,3485.9,3485.8,0.28711]
[1735909839790,0.28711,3486.0,3485.8,0.28711]
[1735909840087,0.28711,3485.9,3485.7,0.28712]
[1735909840292,44.0078,3486.2,3485.4,2.68875429]
[1735909840589,0.28711,3486.0,3485.8,0.28711]
[1735909840786,44.0078,3486.2,3485.4,2.68875429]
[1735909840985,44.0078,3486.2,3477.5,0.11987867]
[1735909840986,3.2078,3486.7,3485.9,3.2078]
[1735909841182,0.71754,3487.1,3486.4,0.28706]
[1735909841384,0.28706,3486.5,3486.4,0.28706]
[1735909841695,40.8,3487.0,3486.3,0.28707]
[1735909841696,0.28707,3486.4,3486.3,0.28707]
[1735909841893,40.8,3487.0,3486.1,0.28709]
[1735909841894,0.28706,3486.5,3486.1,0.28709]
[1735909842391,0.28705,3486.7,3486.1,0.71774]
[1735909842585,3.2078,3486.9,3486.1,0.71774]
[1735909842786,3.2078,3487.4,3486.6,3.49485]
[1735909842989,0.28704,3486.7,3486.6,3.2078]
[1735909843292,0.28704,3486.7,3486.6,3.49485]
[1735909843594,3.2078,3487.4,3486.6,3.2078]
[1735909843886,0.28703,3486.9,3486.8,0.28703]
[1735909844287,40.8,3487.3,3486.8,0.28703]
[1735909844581,40.8,3487.3,3486.6,3.2078]
[1735909844781,3.2078,3487.4,3486.6,3.2078]
[1735909844782,3.2078,3487.4,3486.6,5.89655429]
[1735909844987,3.2078,3488.3,3487.0,5.89655429]
[1735909845186,3.2078,3488.3,3487.7,3.2078]
[1735909845187,0.28695,3487.8,3487.7,3.2078]
[1735909845492,0.28693,3488.1,3487.9,0.28694]
[1735909845791,0.28695,3487.8,3487.7,3.2078]
[1735909846286,40.8,3488.2,3487.7,3.2078]
[1735909846992,41.08693,3488.2,3488.0,0.28693]